[Event "Titled Tuesday Blitz February 21 Late 2023"]
[White "Bilan, Danila"]
[Black "Leiva, Gianmarco"]
[WhiteFideId "24161918"]
[BlackFideId "3804399"]
[WhiteElo "2303"]
[BlackElo "2392"]
[Result "1-0"]
[Round "04"]
[TimeControl "180+2"]
[Date "2023.02.21"]
[WhiteClock "0:00:13"]
[BlackClock "0:01:46"]

1. d4 {[%clk 0:03:00]}  Nf6 {[%clk 0:03:00]} 2. Nf3 {[%clk 0:03:00]}  e6 {[%clk 0:03:00]} 3. g3 {[%clk 0:02:58]}  d5 {[%clk 0:03:00]} 4. Bg2 {[%clk 0:02:58]}  Be7 {[%clk 0:03:00]} 5. O-O {[%clk 0:02:59]}  O-O {[%clk 0:03:01]} 6. c4 {[%clk 0:02:59]}  Nbd7 {[%clk 0:03:00]} 7. Qc2 {[%clk 0:02:58]}  c6 {[%clk 0:03:00]} 8. Nbd2 {[%clk 0:02:55]}  b6 {[%clk 0:03:00]} 9. e4 {[%clk 0:02:51]}  dxc4 {[%clk 0:03:01]} 10. Nxc4 {[%clk 0:02:47]}  Bb7 {[%clk 0:02:56]} 11. e5 {[%clk 0:02:13]}  Nd5 {[%clk 0:02:56]} 12. h4 {[%clk 0:02:08]}  c5 {[%clk 0:02:50]} 13. dxc5 {[%clk 0:01:51]}  Nxc5 {[%clk 0:02:37]} 14. Ng5 {[%clk 0:01:35]}  g6 {[%clk 0:02:31]} 15. Ne4 {[%clk 0:01:28]}  Nb4 {[%clk 0:02:29]} 16. Qe2 {[%clk 0:01:20]}  Nxe4 {[%clk 0:02:29]} 17. Bxe4 {[%clk 0:01:20]}  Bxe4 {[%clk 0:02:30]} 18. Qxe4 {[%clk 0:01:20]}  Qd3 {[%clk 0:02:31]} 19. Qxd3 {[%clk 0:01:15]}  Nxd3 {[%clk 0:02:31]} 20. Rd1 {[%clk 0:01:07]}  Rfd8 {[%clk 0:02:31]} 21. Bg5 {[%clk 0:00:58]}  Bxg5 {[%clk 0:02:29]} 22. hxg5 {[%clk 0:00:59]}  b5 {[%clk 0:02:28]} 23. Nd6 {[%clk 0:00:54]}  Nxe5 {[%clk 0:02:27]} 24. f4 {[%clk 0:00:50]}  Nc4 {[%clk 0:02:22]} 25. Nxb5 {[%clk 0:00:44]}  Nxb2 {[%clk 0:02:15]} 26. Rxd8+ {[%clk 0:00:41]}  Rxd8 {[%clk 0:02:16]} 27. Nxa7 {[%clk 0:00:40]}  Rd2 {[%clk 0:02:16]} 28. Nb5 {[%clk 0:00:35]}  Na4 {[%clk 0:02:10]} 29. a3 {[%clk 0:00:33]}  Kg7 {[%clk 0:02:07]} 30. Rb1 {[%clk 0:00:29]}  h6 {[%clk 0:02:03]} 31. gxh6+ {[%clk 0:00:28]}  Kxh6 {[%clk 0:02:04]} 32. Rb4 {[%clk 0:00:28]}  Nc3 {[%clk 0:02:03]} 33. Nxc3 {[%clk 0:00:28]}  Rd3 {[%clk 0:01:59]} 34. Rb3 {[%clk 0:00:23]}  Rxg3+ {[%clk 0:01:58]} 35. Kf2 {[%clk 0:00:24]}  Rd3 {[%clk 0:01:49]} 36. a4 {[%clk 0:00:23]}  Kh5 {[%clk 0:01:46]} 37. a5 {[%clk 0:00:19]}  Kg4 {[%clk 0:01:46]} 38. a6 {[%clk 0:00:19]}  Rd7 {[%clk 0:01:46]} 39. Rb7 {[%clk 0:00:17]}  Rd6 {[%clk 0:01:44]} 40. a7 {[%clk 0:00:14]}  Ra6 {[%clk 0:01:44]} 41. Rxf7 {[%clk 0:00:13]}  Ra3 {[%clk 0:01:44]} 42. Nb5 {[%clk 0:00:12]}  Ra2+ {[%clk 0:01:44]} 43. Ke3 {[%clk 0:00:12]}  Ra3+ {[%clk 0:01:45]} 44. Ke4 {[%clk 0:00:12]}  Ra4+ {[%clk 0:01:46]} 45. Kd3 {[%clk 0:00:12]}  Ra5 {[%clk 0:01:44]} 46. Kc4 {[%clk 0:00:12]}  Ra4+ {[%clk 0:01:45]} 47. Kc5 {[%clk 0:00:13]}  Rxf4 {[%clk 0:01:46]} 48. Rxf4+ {[%clk 0:00:13]}  Kxf4 {[%clk 0:01:46]} 49. a8=Q {[%clk 0:00:13]} 1-0


[Site "https://www.chess.com"]

[Event "Titled Tuesday Blitz February 21 Late 2023"]
[White "Remolar Gallen, Jose"]
[Black "Korchmar, Vasiliy"]
[WhiteFideId "2215187"]
[BlackFideId "24131750"]
[WhiteElo "2285"]
[BlackElo "2438"]
[Result "1-0"]
[Round "04"]
[TimeControl "180+2"]
[Date "2023.02.21"]
[WhiteClock "0:00:18"]
[BlackClock "0:00:12"]

1. e4 {[%clk 0:03:00]}  c5 {[%clk 0:03:00]} 2. Nf3 {[%clk 0:03:01]}  d6 {[%clk 0:03:00]} 3. d4 {[%clk 0:03:01]}  cxd4 {[%clk 0:03:01]} 4. Nxd4 {[%clk 0:03:01]}  Nf6 {[%clk 0:03:02]} 5. Nc3 {[%clk 0:03:02]}  Nc6 {[%clk 0:03:03]} 6. Bg5 {[%clk 0:03:01]}  Bd7 {[%clk 0:03:02]} 7. Qd2 {[%clk 0:02:59]}  a6 {[%clk 0:03:02]} 8. f4 {[%clk 0:02:54]}  b5 {[%clk 0:02:56]} 9. a3 {[%clk 0:02:46]}  e6 {[%clk 0:02:24]} 10. Be2 {[%clk 0:02:19]}  Be7 {[%clk 0:02:23]} 11. Bf3 {[%clk 0:02:13]}  h6 {[%clk 0:02:22]} 12. Bxf6 {[%clk 0:01:50]}  Bxf6 {[%clk 0:02:13]} 13. Nxc6 {[%clk 0:01:51]}  Bxc6 {[%clk 0:02:11]} 14. O-O-O {[%clk 0:01:51]}  Be7 {[%clk 0:02:00]} 15. Kb1 {[%clk 0:01:28]}  a5 {[%clk 0:01:55]} 16. e5 {[%clk 0:01:23]}  d5 {[%clk 0:01:45]} 17. Ne2 {[%clk 0:01:19]}  b4 {[%clk 0:01:43]} 18. Nd4 {[%clk 0:01:17]}  Bd7 {[%clk 0:01:43]} 19. a4 {[%clk 0:01:06]}  Bxa4 {[%clk 0:01:42]} 20. f5 {[%clk 0:01:04]}  Bd7 {[%clk 0:00:59]} 21. fxe6 {[%clk 0:01:03]}  Bxe6 {[%clk 0:01:00]} 22. Nxe6 {[%clk 0:01:01]}  fxe6 {[%clk 0:01:01]} 23. Bh5+ {[%clk 0:01:01]}  Kd7 {[%clk 0:01:01]} 24. Qd3 {[%clk 0:00:47]}  Qb6 {[%clk 0:00:55]} 25. Bf3 {[%clk 0:00:33]}  a4 {[%clk 0:00:52]} 26. Bxd5 {[%clk 0:00:30]}  exd5 {[%clk 0:00:53]} 27. Qxd5+ {[%clk 0:00:30]}  Ke8 {[%clk 0:00:32]} 28. Qxa8+ {[%clk 0:00:23]}  Bd8 {[%clk 0:00:32]} 29. Qxa4+ {[%clk 0:00:22]}  Kf7 {[%clk 0:00:30]} 30. Qb3+ {[%clk 0:00:21]}  Ke7 {[%clk 0:00:25]} 31. Rd6 {[%clk 0:00:19]}  Qa5 {[%clk 0:00:12]} 32. Qe6+ {[%clk 0:00:18]}  Kf8 {[%clk 0:00:12]} 33. Rf1+ {[%clk 0:00:18]} 1-0


[Site "https://www.chess.com"]

[Event "Titled Tuesday Blitz February 21 Late 2023"]
[White "Martinez Reyes, Pedro Ramon"]
[Black "Msellek, Ilyass"]
[WhiteFideId "3901807"]
[BlackFideId "675938"]
[WhiteElo "2376"]
[BlackElo "2420"]
[Result "0-1"]
[Round "04"]
[TimeControl "180+2"]
[Date "2023.02.21"]
[WhiteClock "0:00:12"]
[BlackClock "0:00:05"]

1. e4 {[%clk 0:03:00]}  c6 {[%clk 0:02:57]} 2. d4 {[%clk 0:03:00]}  d5 {[%clk 0:02:56]} 3. e5 {[%clk 0:03:01]}  c5 {[%clk 0:02:56]} 4. c3 {[%clk 0:02:54]}  cxd4 {[%clk 0:02:48]} 5. cxd4 {[%clk 0:02:54]}  Nc6 {[%clk 0:02:48]} 6. Nc3 {[%clk 0:02:53]}  Bf5 {[%clk 0:02:43]} 7. Nf3 {[%clk 0:02:51]}  e6 {[%clk 0:02:42]} 8. Bd3 {[%clk 0:02:51]}  Bxd3 {[%clk 0:02:32]} 9. Qxd3 {[%clk 0:02:52]}  Nge7 {[%clk 0:02:30]} 10. O-O {[%clk 0:02:51]}  Nf5 {[%clk 0:02:30]} 11. a3 {[%clk 0:02:46]}  Be7 {[%clk 0:02:29]} 12. g4 {[%clk 0:02:43]}  Nh4 {[%clk 0:02:19]} 13. Nxh4 {[%clk 0:02:43]}  Bxh4 {[%clk 0:02:20]} 14. Be3 {[%clk 0:02:40]}  O-O {[%clk 0:02:19]} 15. f4 {[%clk 0:02:38]}  Rc8 {[%clk 0:01:48]} 16. Rf3 {[%clk 0:02:17]}  f5 {[%clk 0:01:30]} 17. g5 {[%clk 0:02:06]}  h6 {[%clk 0:01:29]} 18. Kh1 {[%clk 0:01:26]}  hxg5 {[%clk 0:01:26]} 19. fxg5 {[%clk 0:01:27]}  Bxg5 {[%clk 0:01:27]} 20. Rg1 {[%clk 0:01:24]}  Bxe3 {[%clk 0:01:08]} 21. Qxe3 {[%clk 0:01:25]}  Qh4 {[%clk 0:00:46]} 22. Rh3 {[%clk 0:01:07]}  Qxd4 {[%clk 0:00:41]} 23. Rxg7+ {[%clk 0:01:06]}  Kxg7 {[%clk 0:00:38]} 24. Qg5+ {[%clk 0:01:07]}  Kf7 {[%clk 0:00:34]} 25. Qf6+ {[%clk 0:00:53]}  Ke8 {[%clk 0:00:32]} 26. Qxe6+ {[%clk 0:00:53]}  Ne7 {[%clk 0:00:25]} 27. Rh7 {[%clk 0:00:53]}  Rc7 {[%clk 0:00:13]} 28. Qd6 {[%clk 0:00:49]}  Rg8 {[%clk 0:00:05]} 29. Ne2 {[%clk 0:00:12]}  Qe4# {[%clk 0:00:05]} 0-1


[Site "https://www.chess.com"]

[Event "Titled Tuesday Blitz February 21 Late 2023"]
[White "Leenhouts, Koen"]
[Black "Bjelobrk, Igor"]
[WhiteFideId "1008439"]
[BlackFideId "4300726"]
[WhiteElo "2447"]
[BlackElo "2403"]
[Result "0-1"]
[Round "04"]
[TimeControl "180+2"]
[Date "2023.02.21"]
[WhiteClock "0:00:07"]
[BlackClock "0:00:18"]

1. d4 {[%clk 0:03:00]}  e6 {[%clk 0:02:58]} 2. c4 {[%clk 0:03:00]}  Bb4+ {[%clk 0:02:56]} 3. Bd2 {[%clk 0:02:58]}  a5 {[%clk 0:02:53]} 4. Nc3 {[%clk 0:02:53]}  d5 {[%clk 0:02:50]} 5. e3 {[%clk 0:02:52]}  Nf6 {[%clk 0:02:47]} 6. Nf3 {[%clk 0:02:52]}  O-O {[%clk 0:02:46]} 7. Be2 {[%clk 0:02:48]}  b6 {[%clk 0:02:45]} 8. O-O {[%clk 0:02:47]}  Bb7 {[%clk 0:02:45]} 9. Rc1 {[%clk 0:02:44]}  Nbd7 {[%clk 0:02:33]} 10. a3 {[%clk 0:02:36]}  Be7 {[%clk 0:02:31]} 11. cxd5 {[%clk 0:02:34]}  exd5 {[%clk 0:02:30]} 12. Bd3 {[%clk 0:02:27]}  c5 {[%clk 0:02:23]} 13. dxc5 {[%clk 0:02:25]}  bxc5 {[%clk 0:02:21]} 14. Re1 {[%clk 0:02:18]}  Re8 {[%clk 0:02:09]} 15. Bb1 {[%clk 0:02:15]}  Bf8 {[%clk 0:02:07]} 16. Nb5 {[%clk 0:02:11]}  Qb6 {[%clk 0:02:06]} 17. a4 {[%clk 0:02:10]}  g6 {[%clk 0:01:53]} 18. Bc3 {[%clk 0:02:02]}  Bg7 {[%clk 0:01:51]} 19. b3 {[%clk 0:02:01]}  Re7 {[%clk 0:01:44]} 20. h3 {[%clk 0:01:48]}  Rae8 {[%clk 0:01:44]} 21. Qd2 {[%clk 0:01:45]}  d4 {[%clk 0:01:43]} 22. exd4 {[%clk 0:01:32]}  Bxf3 {[%clk 0:01:41]} 23. gxf3 {[%clk 0:01:33]}  cxd4 {[%clk 0:00:53]} 24. Bxa5 {[%clk 0:01:19]}  Rxe1+ {[%clk 0:00:49]} 25. Rxe1 {[%clk 0:01:18]}  Rxe1+ {[%clk 0:00:49]} 26. Qxe1 {[%clk 0:01:19]}  Qc6 {[%clk 0:00:49]} 27. Nxd4 {[%clk 0:01:14]}  Qd5 {[%clk 0:00:49]} 28. Bc3 {[%clk 0:01:01]}  Qg5+ {[%clk 0:00:45]} 29. Kf1 {[%clk 0:00:53]}  Qh4 {[%clk 0:00:41]} 30. Kg2 {[%clk 0:00:30]}  Nd5 {[%clk 0:00:40]} 31. Qe8+ {[%clk 0:00:19]}  Nf8 {[%clk 0:00:40]} 32. Ne6 {[%clk 0:00:10]}  fxe6 {[%clk 0:00:32]} 33. Bxg7 {[%clk 0:00:10]}  Kxg7 {[%clk 0:00:30]} 34. Be4 {[%clk 0:00:08]}  Nf4+ {[%clk 0:00:28]} 35. Kf1 {[%clk 0:00:09]}  Qxh3+ {[%clk 0:00:28]} 36. Ke1 {[%clk 0:00:09]}  Qh1+ {[%clk 0:00:23]} 37. Kd2 {[%clk 0:00:09]}  Qf1 {[%clk 0:00:22]} 38. Qe7+ {[%clk 0:00:08]}  Kg8 {[%clk 0:00:22]} 39. Qc5 {[%clk 0:00:09]}  Qe2+ {[%clk 0:00:21]} 40. Kc3 {[%clk 0:00:08]}  Qe1+ {[%clk 0:00:17]} 41. Kb2 {[%clk 0:00:07]}  Qxe4 {[%clk 0:00:15]} 42. Qxf8+ {[%clk 0:00:06]}  Kxf8 {[%clk 0:00:16]} 43. fxe4 {[%clk 0:00:07]}  Ke7 {[%clk 0:00:16]} 44. a5 {[%clk 0:00:07]}  Kd7 {[%clk 0:00:17]} 45. b4 {[%clk 0:00:07]}  Kc6 {[%clk 0:00:17]} 46. Kc3 {[%clk 0:00:08]}  Kb5 {[%clk 0:00:17]} 47. Kd4 {[%clk 0:00:07]}  h5 {[%clk 0:00:18]} 0-1


[Site "https://www.chess.com"]

[Event "Titled Tuesday Blitz February 21 Late 2023"]
[White "Costachi, Mihnea"]
[Black "Garcia, Gabriel Gonzaga"]
[WhiteFideId "1217518"]
[BlackFideId "2138956"]
[WhiteElo "2476"]
[BlackElo "2091"]
[Result "1-0"]
[Round "04"]
[TimeControl "180+2"]
[Date "2023.02.21"]
[WhiteClock "0:01:40"]
[BlackClock "0:01:29"]

1. Nc3 {[%clk 0:03:00]}  Nf6 {[%clk 0:02:58]} 2. e4 {[%clk 0:02:59]}  d5 {[%clk 0:02:58]} 3. e5 {[%clk 0:02:58]}  d4 {[%clk 0:02:59]} 4. exf6 {[%clk 0:02:58]}  dxc3 {[%clk 0:03:00]} 5. fxg7 {[%clk 0:02:55]}  cxd2+ {[%clk 0:03:00]} 6. Qxd2 {[%clk 0:02:53]}  Qxd2+ {[%clk 0:03:01]} 7. Bxd2 {[%clk 0:02:54]}  Bxg7 {[%clk 0:03:02]} 8. O-O-O {[%clk 0:02:54]}  Bf5 {[%clk 0:02:58]} 9. Nf3 {[%clk 0:02:46]}  Nd7 {[%clk 0:02:58]} 10. Bc4 {[%clk 0:02:37]}  Ne5 {[%clk 0:02:41]} 11. Nxe5 {[%clk 0:02:32]}  Bxe5 {[%clk 0:02:42]} 12. Rhe1 {[%clk 0:02:31]}  Bd6 {[%clk 0:02:36]} 13. f3 {[%clk 0:02:04]}  Rg8 {[%clk 0:02:32]} 14. g4 {[%clk 0:02:05]}  Bg6 {[%clk 0:02:32]} 15. h4 {[%clk 0:02:01]}  h5 {[%clk 0:02:32]} 16. Bg5 {[%clk 0:01:51]}  O-O-O {[%clk 0:01:29]} 17. Bxe7 {[%clk 0:01:45]}  Bf4+ {[%clk 0:01:29]} 18. Kb1 {[%clk 0:01:45]}  Rxd1+ {[%clk 0:01:30]} 19. Rxd1 {[%clk 0:01:45]}  Re8 {[%clk 0:01:31]} 20. Bf6 {[%clk 0:01:41]}  Re3 {[%clk 0:01:29]} 21. Rd8# {[%clk 0:01:40]} 1-0


[Site "https://www.chess.com"]

[Event "Titled Tuesday Blitz February 21 Late 2023"]
[White "Przybylski, Wojciech"]
[Black "Soham Kamotra"]
[WhiteFideId "1117599"]
[BlackFideId "46647490"]
[WhiteElo "2321"]
[BlackElo "2319"]
[Result "0-1"]
[Round "04"]
[TimeControl "180+2"]
[Date "2023.02.21"]
[WhiteClock "0:00:10"]
[BlackClock "0:00:12"]

1. e4 {[%clk 0:03:00]}  c5 {[%clk 0:02:57]} 2. Nf3 {[%clk 0:02:59]}  b6 {[%clk 0:02:56]} 3. Nc3 {[%clk 0:02:56]}  Bb7 {[%clk 0:02:57]} 4. Bc4 {[%clk 0:02:53]}  e6 {[%clk 0:02:57]} 5. O-O {[%clk 0:02:53]}  d6 {[%clk 0:02:56]} 6. a4 {[%clk 0:02:51]}  a6 {[%clk 0:02:54]} 7. Re1 {[%clk 0:02:51]}  Be7 {[%clk 0:02:45]} 8. d4 {[%clk 0:02:50]}  cxd4 {[%clk 0:02:44]} 9. Nxd4 {[%clk 0:02:48]}  Nf6 {[%clk 0:02:41]} 10. Bg5 {[%clk 0:02:44]}  Qc8 {[%clk 0:02:28]} 11. Qe2 {[%clk 0:02:41]}  Nbd7 {[%clk 0:02:26]} 12. Bxe6 {[%clk 0:02:32]}  fxe6 {[%clk 0:02:20]} 13. Nxe6 {[%clk 0:02:33]}  Kf7 {[%clk 0:02:12]} 14. Nd4 {[%clk 0:02:32]}  Re8 {[%clk 0:02:09]} 15. f4 {[%clk 0:02:31]}  Bf8 {[%clk 0:01:57]} 16. Kh1 {[%clk 0:02:20]}  Kg8 {[%clk 0:01:55]} 17. Qf3 {[%clk 0:02:10]}  h6 {[%clk 0:01:42]} 18. Bh4 {[%clk 0:02:08]}  Qc5 {[%clk 0:01:41]} 19. Rad1 {[%clk 0:01:51]}  Qh5 {[%clk 0:01:24]} 20. Nf5 {[%clk 0:01:34]}  Qxf5 {[%clk 0:01:21]} 21. exf5 {[%clk 0:01:27]}  Bxf3 {[%clk 0:01:22]} 22. gxf3 {[%clk 0:01:27]}  Rxe1+ {[%clk 0:01:21]} 23. Bxe1 {[%clk 0:01:23]}  Re8 {[%clk 0:01:18]} 24. Bf2 {[%clk 0:01:19]}  Nc5 {[%clk 0:01:03]} 25. b4 {[%clk 0:01:12]}  Ncd7 {[%clk 0:01:02]} 26. Kg2 {[%clk 0:01:09]}  Rc8 {[%clk 0:01:01]} 27. Bd4 {[%clk 0:01:05]}  Rc4 {[%clk 0:00:59]} 28. b5 {[%clk 0:00:58]}  axb5 {[%clk 0:00:58]} 29. axb5 {[%clk 0:00:58]}  d5 {[%clk 0:00:55]} 30. Kg3 {[%clk 0:00:41]}  Bc5 {[%clk 0:00:47]} 31. Bxf6 {[%clk 0:00:19]}  Nxf6 {[%clk 0:00:46]} 32. Nxd5 {[%clk 0:00:19]}  Nxd5 {[%clk 0:00:44]} 33. Rxd5 {[%clk 0:00:19]}  Rxc2 {[%clk 0:00:40]} 34. Rd7 {[%clk 0:00:18]}  Rb2 {[%clk 0:00:32]} 35. Kg4 {[%clk 0:00:17]}  Rxb5 {[%clk 0:00:31]} 36. f6 {[%clk 0:00:17]}  gxf6 {[%clk 0:00:28]} 37. Kf5 {[%clk 0:00:17]}  Bf8+ {[%clk 0:00:26]} 38. Kxf6 {[%clk 0:00:13]}  Rb3 {[%clk 0:00:25]} 39. f5 {[%clk 0:00:11]}  Rxf3 {[%clk 0:00:20]} 40. Rb7 {[%clk 0:00:11]}  Rb3 {[%clk 0:00:20]} 41. Kg6 {[%clk 0:00:11]}  Rb2 {[%clk 0:00:19]} 42. f6 {[%clk 0:00:09]}  Rg2+ {[%clk 0:00:19]} 43. Kf5 {[%clk 0:00:09]}  Rxh2 {[%clk 0:00:12]} 44. Rxb6 {[%clk 0:00:08]}  Rg2 {[%clk 0:00:12]} 45. Rb7 {[%clk 0:00:07]}  Rg5+ {[%clk 0:00:12]} 46. Ke6 {[%clk 0:00:07]}  h5 {[%clk 0:00:11]} 47. Rb3 {[%clk 0:00:06]}  Kh7 {[%clk 0:00:10]} 48. Rb7+ {[%clk 0:00:05]}  Kg6 {[%clk 0:00:10]} 49. Rb8 {[%clk 0:00:05]}  Bh6 {[%clk 0:00:10]} 50. Rg8+ {[%clk 0:00:05]}  Kh7 {[%clk 0:00:10]} 51. Ra8 {[%clk 0:00:04]}  Rg2 {[%clk 0:00:08]} 52. f7 {[%clk 0:00:05]}  Re2+ {[%clk 0:00:07]} 53. Kf6 {[%clk 0:00:04]}  Rf2+ {[%clk 0:00:07]} 54. Ke6 {[%clk 0:00:04]}  Bg7 {[%clk 0:00:07]} 55. Ra7 {[%clk 0:00:03]}  Kg6 {[%clk 0:00:07]} 56. Ra6 {[%clk 0:00:03]}  Rf6+ {[%clk 0:00:07]} 57. Ke7 {[%clk 0:00:03]}  Rxa6 {[%clk 0:00:08]} 58. f8=Q {[%clk 0:00:03]}  Bxf8+ {[%clk 0:00:08]} 59. Ke8 {[%clk 0:00:04]}  Kf6 {[%clk 0:00:08]} 60. Kd7 {[%clk 0:00:04]}  Rd6+ {[%clk 0:00:08]} 61. Kc7 {[%clk 0:00:05]}  h4 {[%clk 0:00:08]} 62. Kc8 {[%clk 0:00:06]}  h3 {[%clk 0:00:09]} 63. Kb7 {[%clk 0:00:07]}  h2 {[%clk 0:00:09]} 64. Kc7 {[%clk 0:00:07]}  h1=Q {[%clk 0:00:10]} 65. Kc8 {[%clk 0:00:08]}  Qa8+ {[%clk 0:00:10]} 66. Kc7 {[%clk 0:00:09]}  Qd8+ {[%clk 0:00:10]} 67. Kb7 {[%clk 0:00:10]}  Rb6+ {[%clk 0:00:11]} 68. Ka7 {[%clk 0:00:10]}  Qb8# {[%clk 0:00:12]} 0-1


[Site "https://www.chess.com"]

[Event "Titled Tuesday Blitz February 21 Late 2023"]
[White "Perske, Thore"]
[Black "Zochowski, Kacper"]
[WhiteFideId "12902195"]
[BlackFideId "1125494"]
[WhiteElo "2448"]
[BlackElo "2262"]
[Result "1-0"]
[Round "04"]
[TimeControl "180+2"]
[Date "2023.02.21"]
[WhiteClock "0:00:34"]
[BlackClock "0:00:18"]

1. e4 {[%clk 0:03:00]}  d6 {[%clk 0:03:00]} 2. Nf3 {[%clk 0:03:00]}  Nf6 {[%clk 0:03:01]} 3. d3 {[%clk 0:02:58]}  e5 {[%clk 0:03:01]} 4. g3 {[%clk 0:02:57]}  Be7 {[%clk 0:03:02]} 5. Bg2 {[%clk 0:02:58]}  O-O {[%clk 0:03:02]} 6. O-O {[%clk 0:02:59]}  c6 {[%clk 0:03:03]} 7. a4 {[%clk 0:02:58]}  Nbd7 {[%clk 0:03:03]} 8. Nc3 {[%clk 0:02:58]}  Re8 {[%clk 0:03:04]} 9. h3 {[%clk 0:02:58]}  Bf8 {[%clk 0:03:04]} 10. Nh2 {[%clk 0:02:56]}  Qc7 {[%clk 0:03:05]} 11. f4 {[%clk 0:02:56]}  b6 {[%clk 0:03:04]} 12. f5 {[%clk 0:02:56]}  Bb7 {[%clk 0:03:02]} 13. g4 {[%clk 0:02:57]}  Nc5 {[%clk 0:02:48]} 14. g5 {[%clk 0:02:56]}  Nfd7 {[%clk 0:02:49]} 15. h4 {[%clk 0:02:45]}  a6 {[%clk 0:02:28]} 16. b4 {[%clk 0:02:44]}  Nxa4 {[%clk 0:02:27]} 17. Rxa4 {[%clk 0:02:38]}  a5 {[%clk 0:02:18]} 18. bxa5 {[%clk 0:02:35]}  b5 {[%clk 0:02:19]} 19. Ra1 {[%clk 0:02:33]}  b4 {[%clk 0:02:19]} 20. Ne2 {[%clk 0:02:31]}  d5 {[%clk 0:02:20]} 21. Ng4 {[%clk 0:02:19]}  Nc5 {[%clk 0:02:16]} 22. Be3 {[%clk 0:02:11]}  dxe4 {[%clk 0:02:15]} 23. dxe4 {[%clk 0:02:11]}  Rxa5 {[%clk 0:02:13]} 24. h5 {[%clk 0:02:06]}  b3 {[%clk 0:02:02]} 25. cxb3 {[%clk 0:02:00]}  Rxa1 {[%clk 0:02:02]} 26. Qxa1 {[%clk 0:02:01]}  Nxb3 {[%clk 0:02:03]} 27. Qc3 {[%clk 0:02:01]}  Nd4 {[%clk 0:02:03]} 28. Nxd4 {[%clk 0:01:54]}  exd4 {[%clk 0:02:03]} 29. Bxd4 {[%clk 0:01:54]}  c5 {[%clk 0:02:04]} 30. Be5 {[%clk 0:01:47]}  Qb6 {[%clk 0:02:04]} 31. h6 {[%clk 0:01:40]}  c4+ {[%clk 0:01:53]} 32. Kh1 {[%clk 0:01:40]}  Bb4 {[%clk 0:01:51]} 33. Qg3 {[%clk 0:01:11]}  Bxe4 {[%clk 0:01:04]} 34. Bxe4 {[%clk 0:01:06]}  c3 {[%clk 0:01:04]} 35. hxg7 {[%clk 0:01:01]}  c2 {[%clk 0:00:52]} 36. Bxc2 {[%clk 0:00:47]}  Qc6+ {[%clk 0:00:51]} 37. Qg2 {[%clk 0:00:47]}  Rc8 {[%clk 0:00:44]} 38. Nh6+ {[%clk 0:00:43]}  Qxh6+ {[%clk 0:00:43]} 39. gxh6 {[%clk 0:00:44]}  Be7 {[%clk 0:00:38]} 40. Qb7 {[%clk 0:00:35]}  Bf6 {[%clk 0:00:18]} 41. Qxc8+ {[%clk 0:00:34]} 1-0


[Site "https://www.chess.com"]

[Event "Titled Tuesday Blitz February 21 Late 2023"]
[White "Ozer, Omer Faruk"]
[Black "Rodriguez Fontecha, Marcos"]
[WhiteFideId "6354564"]
[BlackFideId "2256576"]
[WhiteElo "2360"]
[BlackElo "2309"]
[Result "1-0"]
[Round "04"]
[TimeControl "180+2"]
[Date "2023.02.21"]
[WhiteClock "0:02:02"]
[BlackClock "0:01:17"]

1. e4 {[%clk 0:03:00]}  e6 {[%clk 0:02:59]} 2. d3 {[%clk 0:03:00]}  d5 {[%clk 0:02:59]} 3. Nd2 {[%clk 0:03:01]}  Nf6 {[%clk 0:03:00]} 4. Ngf3 {[%clk 0:03:01]}  Nc6 {[%clk 0:03:00]} 5. Be2 {[%clk 0:03:01]}  dxe4 {[%clk 0:02:59]} 6. dxe4 {[%clk 0:03:01]}  e5 {[%clk 0:03:00]} 7. O-O {[%clk 0:03:01]}  Bc5 {[%clk 0:02:59]} 8. c3 {[%clk 0:03:01]}  a5 {[%clk 0:02:59]} 9. a4 {[%clk 0:03:01]}  O-O {[%clk 0:02:58]} 10. Qc2 {[%clk 0:03:01]}  Qe7 {[%clk 0:02:58]} 11. Nc4 {[%clk 0:03:01]}  Bg4 {[%clk 0:02:55]} 12. Ne3 {[%clk 0:03:00]}  Bh5 {[%clk 0:02:52]} 13. Nf5 {[%clk 0:02:58]}  Qe8 {[%clk 0:02:46]} 14. Bg5 {[%clk 0:02:58]}  Nd7 {[%clk 0:02:40]} 15. Rad1 {[%clk 0:02:50]}  f6 {[%clk 0:02:38]} 16. Bc1 {[%clk 0:02:49]}  Bf7 {[%clk 0:02:38]} 17. Bb5 {[%clk 0:02:48]}  Rd8 {[%clk 0:02:30]} 18. Qe2 {[%clk 0:02:41]}  Na7 {[%clk 0:02:26]} 19. Bc4 {[%clk 0:02:32]}  Nb6 {[%clk 0:02:19]} 20. Rxd8 {[%clk 0:02:31]}  Qxd8 {[%clk 0:02:18]} 21. Bxf7+ {[%clk 0:02:31]}  Rxf7 {[%clk 0:02:19]} 22. b3 {[%clk 0:02:28]}  Rd7 {[%clk 0:02:17]} 23. h4 {[%clk 0:02:08]}  Rd3 {[%clk 0:02:16]} 24. Qc2 {[%clk 0:02:08]}  Nc6 {[%clk 0:01:53]} 25. h5 {[%clk 0:02:06]}  Rd7 {[%clk 0:01:47]} 26. N3h4 {[%clk 0:02:03]}  Nc8 {[%clk 0:01:40]} 27. Qe2 {[%clk 0:02:03]}  N6e7 {[%clk 0:01:17]} 28. Qc4+ {[%clk 0:02:02]} 1-0


[Site "https://www.chess.com"]

[Event "Titled Tuesday Blitz February 21 Late 2023"]
[White "Bhavikatti, Neil"]
[Black "Feng, Eric"]
[WhiteFideId "30935024"]
[BlackFideId "30952590"]
[WhiteElo "2051"]
[BlackElo "1951"]
[Result "0-1"]
[Round "04"]
[TimeControl "180+2"]
[Date "2023.02.21"]
[WhiteClock "0:00:29"]
[BlackClock "0:01:50"]

1. d4 {[%clk 0:03:00]}  Nf6 {[%clk 0:02:59]} 2. c4 {[%clk 0:03:00]}  e6 {[%clk 0:03:00]} 3. Nc3 {[%clk 0:03:00]}  d5 {[%clk 0:03:00]} 4. cxd5 {[%clk 0:03:00]}  exd5 {[%clk 0:03:01]} 5. Bg5 {[%clk 0:03:00]}  Be7 {[%clk 0:03:02]} 6. Qc2 {[%clk 0:02:58]}  c6 {[%clk 0:03:02]} 7. e3 {[%clk 0:02:58]}  Ne4 {[%clk 0:03:01]} 8. Nxe4 {[%clk 0:02:35]}  Bxg5 {[%clk 0:03:01]} 9. Nxg5 {[%clk 0:02:34]}  Qxg5 {[%clk 0:03:01]} 10. Nf3 {[%clk 0:02:34]}  Qf6 {[%clk 0:03:01]} 11. Bd3 {[%clk 0:02:31]}  h5 {[%clk 0:02:59]} 12. O-O {[%clk 0:02:23]}  Bg4 {[%clk 0:02:59]} 13. Ne5 {[%clk 0:02:20]}  Nd7 {[%clk 0:02:55]} 14. f4 {[%clk 0:02:16]}  O-O {[%clk 0:02:42]} 15. Rae1 {[%clk 0:02:05]}  Nxe5 {[%clk 0:02:33]} 16. dxe5 {[%clk 0:01:58]}  Qh6 {[%clk 0:02:32]} 17. f5 {[%clk 0:01:50]}  h4 {[%clk 0:02:23]} 18. Rf4 {[%clk 0:01:50]}  Qg5 {[%clk 0:02:19]} 19. Qf2 {[%clk 0:01:08]}  Rae8 {[%clk 0:02:16]} 20. h3 {[%clk 0:01:06]}  Bxh3 {[%clk 0:02:14]} 21. Rxh4 {[%clk 0:01:03]}  Bxg2 {[%clk 0:02:11]} 22. f6 {[%clk 0:00:53]}  Be4+ {[%clk 0:01:56]} 23. Kh2 {[%clk 0:00:52]}  Qxe5+ {[%clk 0:01:55]} 24. Kh3 {[%clk 0:00:44]}  Bxd3 {[%clk 0:01:55]} 25. fxg7 {[%clk 0:00:40]}  Kxg7 {[%clk 0:01:52]} 26. Rg1+ {[%clk 0:00:36]}  Bg6 {[%clk 0:01:52]} 27. Qf4 {[%clk 0:00:29]}  Qxe3+ {[%clk 0:01:50]} 0-1


[Site "https://www.chess.com"]